bitfinex-derivatives/quotes_BTCF0:USTF0_20260119
["timestamp","ask_amount","ask_price","bid_price","bid_amount"]
[1768791964005,0.010793,92689.0,92671.0,0.00999603]
[1768791964208,0.010793,92689.0,92670.0,0.14544442]
[1768791964209,0.010793,92689.0,92672.0,0.0132246]
[1768791964409,0.01980226,92692.0,92674.0,0.00999603]
[1768791964602,0.010793,92692.0,92681.0,0.00999603]
[1768791965112,0.09716,92695.0,92681.0,0.00999603]
[1768791965318,0.09716,92696.0,92681.0,0.00999603]
[1768791965614,0.010793,92694.0,92681.0,0.00999603]
[1768791966017,0.09716,92696.0,92685.0,0.00999603]
[1768791966516,0.00900926,92702.0,92687.0,0.00999603]
[1768791967220,0.09716,92703.0,92687.0,0.00999603]
[1768791967612,0.010792,92702.0,92687.0,0.00999603]
[1768791970818,0.00237314,92704.0,92691.0,0.01308541]
[1768791971013,0.00237303,92709.0,92696.0,0.00999603]
[1768791971209,0.00237303,92709.0,92699.0,0.14544442]
[1768791972214,0.07773121,92716.0,92699.0,0.14544442]
[1768791972513,0.07773121,92718.0,92699.0,0.14544442]
[1768791972710,0.08773121,92718.0,92699.0,0.14544442]
[1768791972913,0.07773121,92718.0,92708.0,0.14544442]
[1768791973118,0.07773121,92719.0,92708.0,0.01604215]
[1768791973322,0.07773121,92720.0,92706.0,0.00999603]
[1768791973521,0.07773121,92721.0,92706.0,0.00999603]
[1768791973715,0.08852021,92721.0,92706.0,0.00999603]
[1768791974323,0.01079,92718.0,92706.0,0.00999603]
[1768791975425,0.01079,92718.0,92704.0,0.00016183]
[1768791975924,0.01079,92718.0,92704.0,0.01015786]
[1768791976827,0.07773121,92722.0,92704.0,0.01015786]
[1768791977324,0.17489121,92723.0,92704.0,0.01015786]
[1768791977632,0.18390047,92723.0,92704.0,0.01015786]
[1768791977924,0.00237263,92724.0,92711.0,0.00999603]
[1768791978314,0.00237263,92724.0,92712.0,0.00999603]
[1768791978713,0.07773121,92728.0,92712.0,0.00999603]
[1768791979425,0.17726373,92729.0,92712.0,0.00999603]
[1768791979815,0.07773121,92728.0,92712.0,0.00999603]
[1768791980016,0.010789,92727.0,92712.0,0.00999603]
[1768791980216,0.00900926,92717.0,92704.0,0.00016183]
[1768791980421,0.00900926,92717.0,92705.0,0.09716]
[1768791981127,0.01079,92716.0,92705.0,0.09716]
[1768791981323,0.01079,92716.0,92704.0,0.00016183]
[1768791981324,0.01868138,92717.0,92704.0,8.3e-07]
[1768791981624,0.010791,92706.0,92691.0,0.00999603]
[1768791981825,0.010791,92710.0,92693.0,0.00999603]
[1768791982129,0.01079,92714.0,92701.0,0.00999603]
[1768791982322,0.01079,92718.0,92701.0,0.00999603]
[1768791982725,0.01079,92715.0,92695.0,0.00284256]
[1768791983021,0.01079,92715.0,92700.0,0.14544442]
[1768791983223,0.01079,92715.0,92695.0,0.00284256]
[1768791983619,0.00967771,92718.0,92699.0,0.010792]
[1768791983820,0.00967771,92718.0,92703.0,0.010791]
[1768791984223,0.00016183,92720.0,92704.0,0.00299382]
[1768791984424,0.09716,92724.0,92710.0,0.14544442]
[1768791984631,0.010789,92723.0,92710.0,0.14544442]
[1768791984927,0.010789,92723.0,92711.0,0.00940729]
[1768791985626,0.010789,92723.0,92701.0,0.10672912]
[1768791985627,0.00967771,92721.0,92701.0,0.10672912]
[1768791985814,0.01079,92718.0,92703.0,0.00940729]
[1768791986014,0.01079,92718.0,92703.0,0.10656729]
[1768791986225,0.14544442,92720.0,92703.0,0.09716]
[1768791986226,0.01079,92716.0,92703.0,0.09716]
[1768791986425,0.01079,92714.0,92701.0,0.00016183]
[1768791986614,0.00967771,92713.0,92701.0,0.00016183]
[1768791987420,0.01079,92712.0,92701.0,0.00016183]
[1768791987731,0.02041871,92709.0,92697.0,0.09712]
[1768791988232,0.00967771,92709.0,92697.0,0.09712]
[1768791993720,0.00967771,92709.0,92691.0,0.00940729]
[1768791993928,0.00016183,92716.0,92689.0,0.00237354]
[1768791993929,0.15512213,92701.0,92689.0,0.00237354]
[1768791994230,0.00967771,92699.0,92689.0,0.00237354]
[1768791994425,0.00967771,92721.0,92697.0,0.00940729]
[1768791994619,0.00967771,92721.0,92701.0,0.00940729]
[1768791994620,0.02046671,92721.0,92701.0,0.00940729]
[1768791994821,0.10679771,92721.0,92702.0,0.00940729]
[1768791995026,0.14544442,92720.0,92704.0,0.00940729]
[1768791995235,0.01079,92719.0,92704.0,0.00940729]
[1768791995434,0.00967771,92715.0,92697.0,0.010792]
[1768791995739,0.14544442,92710.0,92694.0,0.00940729]
[1768791995925,0.00967771,92711.0,92693.0,0.010793]
[1768791996121,0.00967771,92710.0,92693.0,0.010793]
[1768791996738,0.15512213,92710.0,92696.0,0.010792]
[1768791997033,0.00967771,92715.0,92699.0,0.010792]
[1768791997424,0.00967771,92715.0,92698.0,0.00940729]
[1768791997736,0.01079,92714.0,92695.0,0.010792]
[1768791998035,0.02957936,92714.0,92695.0,0.010792]
[1768791998234,0.00926348,92713.0,92695.0,0.010792]
[1768791998428,0.01850796,92713.0,92694.0,0.00940729]
[1768791998633,0.00016183,92716.0,92690.0,0.09712]
[1768791998634,0.00926348,92702.0,92690.0,0.09712]
[1768791999828,0.00924448,92706.0,92690.0,0.09712]
[1768792000034,0.010791,92705.0,92690.0,0.09712]
[1768792000832,0.14544442,92700.0,92689.0,5.4e-07]
[1768792001037,0.00926348,92692.0,92676.0,0.01291089]
[1768792001223,0.010793,92694.0,92670.0,0.09712]
[1768792001224,0.00926348,92689.0,92674.0,0.03867339]
[1768792001430,0.14544442,92690.0,92675.0,0.00907271]
[1768792001830,0.14544442,92690.0,92675.0,0.02184047]
[1768792002030,0.14544442,92690.0,92671.0,0.05137831]
[1768792002338,0.14544442,92690.0,92672.0,0.0477461]
[1768792002531,0.14544442,92690.0,92672.0,0.00907271]
[1768792003542,0.010793,92689.0,92672.0,0.00907271]
[1768792003931,0.00016183,92691.0,92672.0,0.00907271]
[1768792004132,0.14544442,92690.0,92672.0,0.00907271]
[1768792004340,0.14544442,92690.0,92672.0,0.0477461]
[1768792004539,0.14544442,92690.0,92672.0,0.00907271]
[1768792005240,0.15623742,92690.0,92672.0,0.00907271]
[1768792006240,0.14544442,92690.0,92672.0,0.00907271]
[1768792008336,0.00016183,92691.0,92673.0,0.010795]
[1768792008536,0.010793,92690.0,92674.0,0.00907271]
[1768792008939,0.00016183,92691.0,92674.0,0.00907271]
[1768792012847,0.00016183,92691.0,92675.0,0.00968258]
[1768792014249,0.01095483,92691.0,92675.0,0.00968258]
[1768792014445,0.00940403,92710.0,92681.0,0.00968258]
[1768792014648,0.12863747,92708.0,92686.0,0.00968258]
[1768792014851,0.03147747,92707.0,92686.0,0.00968258]
[1768792015044,0.14544442,92700.0,92686.0,0.00968258]
[1768792015243,0.02207344,92699.0,92686.0,0.00968258]
[1768792015450,0.02207344,92698.0,92686.0,0.00968258]
[1768792015645,0.02207344,92697.0,92686.0,0.00968258]
[1768792015845,0.14544442,92700.0,92686.0,0.00968258]
[1768792016041,0.0220733,92699.0,92686.0,0.00968258]
[1768792016250,0.0220733,92698.0,92686.0,0.00968258]
[1768792016442,0.0220733,92697.0,92686.0,0.00968258]
[1768792016642,0.14544442,92700.0,92686.0,0.00968258]
[1768792016851,0.02207399,92699.0,92686.0,0.00968258]
[1768792017052,0.02207399,92698.0,92686.0,0.00968258]
[1768792017351,0.02207399,92697.0,92686.0,0.00968258]
[1768792017553,0.02207399,92696.0,92686.0,0.00968258]
[1768792017854,0.010792,92702.0,92686.0,0.00968258]
[1768792018153,0.02207494,92701.0,92686.0,0.00968258]
[1768792018354,0.02207494,92700.0,92686.0,0.00968258]
[1768792018549,0.02207494,92699.0,92686.0,0.00968258]
[1768792018749,0.02207494,92698.0,92686.0,0.00968258]
[1768792018950,0.02207494,92697.0,92686.0,0.00968258]
[1768792019154,0.02207494,92696.0,92686.0,0.00968258]
[1768792019346,0.010792,92700.0,92686.0,0.00968258]
[1768792019546,0.0220774,92699.0,92686.0,0.00968258]
[1768792019744,0.0220774,92698.0,92686.0,0.00968258]
[1768792019945,0.0220774,92697.0,92686.0,0.00968258]
[1768792020249,0.0220774,92696.0,92686.0,0.00968258]
[1768792020544,0.010792,92700.0,92686.0,0.00968258]
[1768792020749,0.02207863,92699.0,92686.0,0.00968258]
[1768792020950,0.02207863,92698.0,92686.0,0.00968258]
[1768792021151,0.02207863,92697.0,92686.0,0.00968258]
[1768792021355,0.02207863,92696.0,92682.0,0.00968258]
[1768792021553,0.14544442,92692.0,92680.0,0.09716]
[1768792021856,0.14544442,92690.0,92680.0,0.09716]
[1768792022056,0.010793,92693.0,92680.0,0.09716]
[1768792023557,0.010793,92691.0,92680.0,0.09716]
[1768792023755,0.00940403,92694.0,92680.0,0.09716]
[1768792023952,0.00940403,92694.0,92670.0,0.01246432]
[1768792023953,0.01935757,92681.0,92667.0,0.09716]
[1768792024153,0.01935757,92681.0,92662.0,0.00968258]
[1768792024154,0.010794,92678.0,92662.0,0.00968258]
[1768792024354,0.010794,92678.0,92667.0,0.09716]
[1768792026155,0.00995354,92678.0,92667.0,0.09716]
[1768792026363,0.010795,92672.0,92664.0,0.00237417]
[1768792027254,0.02019903,92676.0,92664.0,0.00237417]
[1768792028758,0.010795,92673.0,92664.0,0.00237417]
[1768792030460,0.00940403,92671.0,92660.0,0.09716]
[1768792030661,0.00940403,92671.0,92658.0,0.0129645]
[1768792030957,0.00940403,92671.0,92655.0,0.09716]
[1768792031864,0.010795,92675.0,92656.0,0.00968258]
[1768792032263,0.00940403,92676.0,92659.0,0.02047958]
[1768792032563,0.01935757,92681.0,92663.0,0.010796]
[1768792033263,0.02210804,92680.0,92663.0,0.010796]
[1768792033458,0.01935757,92681.0,92663.0,0.010796]
[1768792033659,0.02210716,92680.0,92663.0,0.010796]
[1768792033859,0.01935757,92681.0,92663.0,0.010796]
[1768792034167,0.02210716,92680.0,92664.0,0.00968258]
[1768792034360,0.00940403,92681.0,92664.0,0.00968258]
[1768792034560,0.11735703,92687.0,92668.0,0.00968258]
[1768792034768,0.02210884,92686.0,92668.0,0.01206445]
[1768792035066,0.02210884,92685.0,92668.0,0.01206445]
[1768792035267,0.02210884,92684.0,92668.0,0.01206445]
[1768792035565,0.02210884,92683.0,92668.0,0.01206445]
[1768792035768,0.02210884,92682.0,92668.0,0.01206445]
[1768792035968,0.11735703,92687.0,92668.0,0.01206445]
[1768792036167,0.010794,92685.0,92668.0,0.01206445]
[1768792036367,0.0221076,92684.0,92668.0,0.01206445]
[1768792036565,0.0221076,92683.0,92668.0,0.01206445]
[1768792036765,0.0221076,92682.0,92668.0,0.00968258]
[1768792036965,0.02197472,92681.0,92664.0,0.00968258]
[1768792037168,0.02019803,92683.0,92665.0,0.00968258]
[1768792037368,0.02197472,92682.0,92665.0,0.00968258]
[1768792037669,0.02197472,92681.0,92665.0,0.00968258]
[1768792037867,0.02019803,92683.0,92665.0,0.00968258]
[1768792038064,0.02197446,92682.0,92665.0,0.00968258]
[1768792038265,0.02197446,92681.0,92665.0,0.00968258]
[1768792038568,0.02019803,92683.0,92666.0,0.010796]
[1768792038761,0.02197436,92682.0,92666.0,0.02047858]
[1768792038962,0.00940403,92683.0,92666.0,0.02047858]
[1768792039162,0.02197435,92682.0,92666.0,0.02047858]
[1768792039468,0.00940403,92683.0,92666.0,0.02047858]
[1768792039667,0.0219744,92682.0,92666.0,0.02047858]
[1768792039868,0.0219744,92681.0,92666.0,0.02047858]
[1768792040063,0.00940403,92683.0,92666.0,0.02047858]
[1768792040259,0.0219745,92682.0,92666.0,0.02047858]
[1768792040464,0.0219745,92681.0,92666.0,0.02047858]
[1768792040664,0.00940403,92683.0,92666.0,0.02047858]
[1768792040859,0.02197469,92682.0,92666.0,0.02047858]
[1768792041066,0.02197469,92681.0,92666.0,0.02047858]
[1768792041260,0.00940403,92683.0,92666.0,0.02047858]
[1768792041567,0.02197496,92682.0,92666.0,0.02047858]
[1768792041770,0.00940403,92683.0,92666.0,0.02047858]
[1768792041971,0.02197496,92682.0,92666.0,0.02047858]
[1768792042169,0.00940403,92683.0,92666.0,0.02047858]
[1768792042370,0.02197496,92682.0,92668.0,0.010795]
[1768792042571,0.00940403,92683.0,92668.0,0.010795]
[1768792042872,0.02197542,92682.0,92666.0,0.00968258]
[1768792043170,0.00940403,92683.0,92667.0,0.010796]
[1768792043366,0.02197542,92682.0,92667.0,0.010796]
[1768792043558,0.00940403,92683.0,92667.0,0.010796]
[1768792043758,0.02197613,92682.0,92666.0,0.00968258]
[1768792043959,0.02019803,92683.0,92666.0,0.00968258]
[1768792044163,0.02197613,92682.0,92666.0,0.00968258]
[1768792044370,0.02019803,92683.0,92666.0,0.00968258]
[1768792044571,0.02197695,92682.0,92666.0,0.00968258]
[1768792044766,0.02019803,92683.0,92666.0,0.00968258]
[1768792044966,0.02192637,92682.0,92666.0,0.00968258]
[1768792045177,0.02019803,92683.0,92666.0,0.02047858]
[1768792045467,0.02192746,92682.0,92666.0,0.02047858]
[1768792045774,0.02192746,92681.0,92666.0,0.02047858]
[1768792045973,0.02192746,92680.0,92666.0,0.02047858]
[1768792046159,0.02192746,92679.0,92666.0,0.02047858]
[1768792046363,0.02192746,92678.0,92666.0,0.02047858]
[1768792046563,0.02192746,92677.0,92666.0,0.02047858]
[1768792046772,0.02019803,92683.0,92666.0,0.02047858]
[1768792046974,0.02193017,92682.0,92666.0,0.02047858]
[1768792047175,0.02193017,92681.0,92666.0,0.02047858]
[1768792047374,0.02193017,92680.0,92666.0,0.02047858]
[1768792047575,0.02193017,92679.0,92666.0,0.02047858]
[1768792047875,0.02193017,92678.0,92666.0,0.02047858]
[1768792048174,0.02193017,92677.0,92666.0,0.02047858]
[1768792048375,0.00940403,92683.0,92666.0,0.02047858]
[1768792048570,0.02193406,92682.0,92666.0,0.02047858]
[1768792048772,0.02193406,92681.0,92666.0,0.02047858]
[1768792048971,0.02193406,92680.0,92666.0,0.02047858]
[1768792049172,0.02193406,92679.0,92666.0,0.02047858]
[1768792049373,0.02193406,92678.0,92666.0,0.02047858]
[1768792049572,0.02193406,92677.0,92666.0,0.02047858]
[1768792049775,0.00940403,92683.0,92666.0,0.02047858]
[1768792049976,0.02193695,92682.0,92666.0,0.02047858]
[1768792050277,0.02193695,92681.0,92666.0,0.02047858]
[1768792050478,0.02193695,92680.0,92668.0,0.010795]
[1768792050672,0.02193695,92679.0,92668.0,0.010795]
[1768792050873,0.02193695,92678.0,92668.0,0.010795]
[1768792051073,0.02193695,92677.0,92668.0,0.010795]
[1768792051278,0.00940403,92683.0,92668.0,0.010795]
[1768792051478,0.02194078,92682.0,92668.0,0.010795]
[1768792051678,0.02194078,92681.0,92668.0,0.010795]
[1768792051879,0.02194078,92680.0,92668.0,0.010795]
[1768792052069,0.00940403,92683.0,92666.0,0.00968258]
[1768792052070,0.02194078,92679.0,92666.0,0.00968258]
[1768792052371,0.09716,92696.0,92681.0,0.01730656]
[1768792052570,0.010792,92700.0,92682.0,0.00651256]
[1768792052778,0.02067606,92700.0,92682.0,0.00651256]
[1768792052979,0.00988406,92699.0,92682.0,0.00651256]
[1768792053175,0.00988406,92699.0,92682.0,0.00667439]
[1768792053375,0.00988406,92699.0,92682.0,0.00016183]
[1768792054179,0.00988406,92699.0,92683.0,0.010794]
[1768792055080,0.00988406,92699.0,92682.0,0.00016183]
[1768792055470,0.00988406,92699.0,92683.0,0.010794]
[1768792056073,0.02067606,92699.0,92682.0,0.00016183]
[1768792056283,0.01969904,92698.0,92682.0,0.00016183]
[1768792056474,0.00988406,92696.0,92682.0,0.00016183]
[1768792056676,0.01969904,92696.0,92682.0,0.00016183]
[1768792056980,0.00988406,92695.0,92682.0,0.00016183]
[1768792060193,0.01937242,92695.0,92682.0,0.00016183]
[1768792060487,0.0094989,92694.0,92682.0,0.00016183]
[1768792061578,0.01898726,92694.0,92682.0,0.00016183]
[1768792061978,0.01898726,92693.0,92682.0,0.00016183]
[1768792062387,0.0094989,92692.0,92682.0,0.00016183]
[1768792064794,0.00948836,92691.0,92682.0,0.00016183]
[1768792064995,0.00948836,92689.0,92675.0,0.09716]
[1768792065294,0.0094989,92688.0,92675.0,0.09716]
[1768792066592,0.0094989,92688.0,92676.0,0.010795]
[1768792067494,0.0094989,92686.0,92675.0,0.09716]
[1768792067696,0.0094989,92685.0,92675.0,0.09716]
[1768792067886,0.0094989,92682.0,92671.0,0.09716]
[1768792068086,0.0094989,92681.0,92671.0,0.09716]
[1768792069289,0.0094989,92680.0,92671.0,0.09716]
[1768792069493,0.0094989,92678.0,92671.0,0.04716]
[1768792070195,0.0094989,92684.0,92671.0,0.04716]
[1768792070394,0.01898726,92684.0,92671.0,0.04716]
[1768792070595,0.0094989,92684.0,92671.0,0.04716]
[1768792076305,0.01922757,92684.0,92671.0,0.04716]
[1768792076495,0.010794,92683.0,92671.0,0.04716]
[1768792077506,0.010794,92683.0,92664.0,0.02130368]
[1768792077699,0.0191705,92679.0,92665.0,0.09716]
[1768792078008,0.010795,92672.0,92665.0,0.09716]
[1768792078706,0.0299655,92676.0,92665.0,0.09716]
[1768792079104,0.02023683,92676.0,92665.0,0.09716]
[1768792079401,0.02023683,92676.0,92664.0,0.00237417]
[1768792080109,0.010795,92673.0,92664.0,0.00237417]
[1768792080406,0.02023583,92686.0,92666.0,0.00905104]
[1768792080609,0.02196429,92685.0,92669.0,0.01984604]
[1768792080797,0.02196429,92684.0,92670.0,0.00905104]
[1768792080997,0.02196429,92683.0,92670.0,0.00905104]
[1768792081299,0.02196429,92682.0,92672.0,0.00905104]
[1768792081499,0.02052067,92695.0,92674.0,0.00905104]
[1768792081704,0.010793,92693.0,92676.0,0.00905104]
[1768792082402,0.00972867,92695.0,92676.0,0.00905104]
[1768792082403,0.00016183,92696.0,92680.0,0.010794]
[1768792082595,0.00016183,92696.0,92683.0,0.010794]
[1768792082798,0.00016183,92696.0,92683.0,0.00905104]
[1768792084995,0.00016183,92696.0,92683.0,0.01899284]
[1768792085195,0.00016183,92696.0,92684.0,0.00905104]
[1768792087108,0.00016183,92696.0,92684.0,0.01899284]
[1768792087705,0.010791,92708.0,92690.0,0.00905104]
[1768792087912,0.00237303,92709.0,92693.0,0.0099418]
[1768792089504,0.07773121,92716.0,92699.0,0.15533695]
[1768792089705,0.07773121,92716.0,92699.0,0.0099418]
[1768792089907,0.07773121,92716.0,92700.0,0.00905104]
[1768792090105,0.01079,92717.0,92701.0,0.00905104]
[1768792092515,0.08852121,92717.0,92701.0,0.00905104]
[1768792092905,0.01079,92717.0,92701.0,0.00905104]
[1768792093106,0.07773121,92718.0,92702.0,0.00905104]
[1768792093405,0.07773121,92719.0,92702.0,0.00905104]
[1768792093609,0.07773121,92718.0,92703.0,0.00905104]
[1768792094114,0.01079,92717.0,92703.0,0.00905104]
[1768792094311,0.0191705,92712.0,92700.0,8.3e-07]
[1768792094510,0.02426165,92696.0,92684.0,0.09716]
[1768792094815,0.15618715,92700.0,92683.0,0.00905104]
[1768792095420,0.14539515,92700.0,92683.0,0.00905104]
[1768792095817,0.14539515,92700.0,92684.0,0.0099418]
[1768792096013,0.14539515,92700.0,92685.0,0.00905104]
[1768792096322,0.14539515,92700.0,92686.0,0.00905104]
[1768792098421,0.14539515,92700.0,92689.0,0.00237354]
[1768792102221,0.00016183,92701.0,92690.0,0.15444619]
[1768792102412,0.00016183,92701.0,92691.0,0.00924703]
[1768792103026,0.00016183,92701.0,92690.0,0.14539515]
[1768792103823,0.00016183,92701.0,92691.0,0.010793]
[1768792105034,0.00016183,92701.0,92690.0,0.010793]
[1768792105218,0.00016183,92701.0,92690.0,0.15618815]
[1768792105424,0.00016183,92701.0,92690.0,0.010793]
[1768792108131,0.00016183,92701.0,92692.0,0.010793]
[1768792109532,0.00016183,92701.0,92692.0,0.02004003]
[1768792109835,0.00016183,92701.0,92692.0,0.00924703]
[1768792117241,0.00016183,92701.0,92689.0,0.00237354]
[1768792117442,0.00016183,92701.0,92690.0,0.00924703]
[1768792119638,0.00016183,92701.0,92691.0,0.00985416]
[1768792120540,0.00016183,92701.0,92692.0,0.010793]
[1768792121438,0.00016183,92701.0,92693.0,0.00985416]
[1768792122942,0.00016183,92701.0,92693.0,0.01948917]
[1768792123142,0.14539515,92710.0,92694.0,0.01948917]
[1768792123439,0.14539515,92710.0,92695.0,0.00985416]
[1768792123836,0.09716,92711.0,92695.0,0.00963501]
[1768792124141,0.09716,92711.0,92696.0,0.010792]
[1768792126635,0.09716,92711.0,92695.0,0.01948917]
[1768792127441,0.09716,92711.0,92696.0,0.00985416]
[1768792128243,0.09716,92711.0,92697.0,0.010792]
[1768792128439,0.09716,92711.0,92696.0,0.00985416]
[1768792129236,0.10667389,92711.0,92694.0,0.010793]
[1768792132444,0.10667389,92711.0,92692.0,0.00985416]
[1768792133037,0.10667389,92711.0,92693.0,0.010793]
[1768792133432,0.00951389,92711.0,92693.0,0.010793]
[1768792135952,0.00951389,92711.0,92695.0,0.010792]
[1768792138048,0.0091287,92705.0,92692.0,0.010793]
[1768792138251,0.02894497,92709.0,92690.0,0.00967528]
[1768792138742,0.02894497,92709.0,92690.0,0.15507043]
[1768792139344,0.02894497,92709.0,92690.0,0.00967528]
[1768792139652,0.0091287,92708.0,92690.0,0.15507043]
[1768792139849,0.00902527,92715.0,92698.0,0.00967528]
[1768792140151,0.11531397,92715.0,92695.0,0.00967528]
[1768792140951,0.01079,92712.0,92694.0,0.00917068]
[1768792141150,0.01815397,92707.0,92689.0,0.00237354]
[1768792141345,0.0091287,92705.0,92689.0,0.00237354]
[1768792141545,0.00902527,92705.0,92689.0,0.00237354]
[1768792141749,0.0199197,92709.0,92689.0,0.01204882]
[1768792141956,0.01815397,92709.0,92690.0,0.010793]
[1768792142143,0.01815397,92709.0,92690.0,0.15618815]
[1768792143956,0.01815397,92709.0,92692.0,0.010793]
[1768792144155,0.0199187,92713.0,92694.0,0.010793]
[1768792144345,0.14539515,92710.0,92694.0,0.010793]
[1768792145053,0.01150133,92724.0,92707.0,0.010791]
[1768792145258,0.01150133,92724.0,92705.0,0.00967528]
[1768792145560,0.0091287,92723.0,92703.0,0.010791]
[1768792145756,0.01815397,92723.0,92703.0,0.010791]
[1768792146055,0.14539515,92720.0,92703.0,0.010791]
[1768792146554,0.0091287,92722.0,92703.0,0.010791]
[1768792146754,0.01815397,92722.0,92703.0,0.010791]
[1768792147653,0.0199177,92721.0,92702.0,0.00967528]
[1768792148156,0.0091287,92721.0,92703.0,0.010791]
[1768792150452,0.0091287,92721.0,92705.0,0.010791]
[1768792150858,0.0091287,92721.0,92702.0,0.00967528]
[1768792151759,0.01981427,92722.0,92703.0,0.02046628]
[1768792152360,0.01815397,92722.0,92703.0,0.02046628]
[1768792154162,0.00902527,92722.0,92704.0,0.00967528]
[1768792154360,0.00237263,92724.0,92706.0,0.00967528]
[1768792154663,0.00237263,92724.0,92707.0,0.02046628]
[1768792154863,0.00237263,92724.0,92707.0,0.010791]
[1768792155165,0.107908,92736.0,92717.0,0.00967528]
[1768792155354,0.10614527,92737.0,92718.0,0.00967528]
[1768792155849,0.00902527,92737.0,92718.0,0.00983711]
[1768792156054,0.09712,92736.0,92718.0,0.00983711]
[1768792156256,0.107908,92736.0,92718.0,0.00983711]
[1768792157360,0.010788,92736.0,92718.0,0.00983711]
[1768792157777,0.01981327,92737.0,92718.0,0.00983711]
[1768792161564,0.010787,92740.0,92721.0,0.00967528]
[1768792161868,0.040787,92740.0,92721.0,0.00967528]
[1768792162466,0.010788,92737.0,92721.0,0.00967528]
[1768792165464,0.07773121,92750.0,92720.0,0.00917068]
[1768792165465,0.00938526,92751.0,92731.0,0.00951874]
[1768792165771,0.010786,92747.0,92728.0,0.00951874]
[1768792165970,0.00938526,92748.0,92728.0,0.00951874]
[1768792166763,0.00938526,92748.0,92725.0,0.00996298]
[1768792166764,0.00938526,92748.0,92729.0,0.02030674]
[1768792167271,0.00938526,92748.0,92729.0,0.00951874]
[1768792168067,0.010787,92746.0,92729.0,0.00951874]
[1768792172073,0.010786,92750.0,92729.0,0.00951874]
[1768792172672,0.010786,92748.0,92729.0,0.00951874]
[1768792174081,0.107906,92748.0,92729.0,0.00951874]
[1768792176571,0.09712,92748.0,92729.0,0.02030674]
[1768792176776,0.09712,92748.0,92732.0,0.00951874]
[1768792176976,0.09712,92748.0,92733.0,0.010788]
[1768792177576,0.09712,92748.0,92732.0,0.00951874]
[1768792179978,0.010786,92749.0,92732.0,0.00951874]
[1768792180182,0.09712,92748.0,92732.0,0.00951874]
[1768792182378,0.107906,92748.0,92732.0,0.00951874]
[1768792185787,0.09712,92748.0,92732.0,0.00951874]
[1768792186279,1.2e-07,92744.0,92733.0,0.01964515]
[1768792186485,0.09712,92756.0,92740.0,0.00990599]
[1768792186684,0.12712,92756.0,92740.0,0.00990599]
[1768792187280,0.03,92756.0,92742.0,0.00990599]
[1768792187470,0.09712,92757.0,92742.0,0.01964515]
[1768792187669,0.09712,92757.0,92742.0,0.03043215]
[1768792187870,0.00983051,92763.0,92742.0,0.03043215]
[1768792187871,0.09712,92759.0,92742.0,0.03043215]
[1768792188073,0.09712,92759.0,92744.0,0.010787]
[1768792188681,0.00923036,92762.0,92742.0,0.01964515]
[1768792188889,0.00237161,92764.0,92756.0,0.02069099]
[1768792189588,0.00237161,92764.0,92756.0,0.00990599]
[1768792190289,0.07773121,92787.0,92756.0,0.00990599]
[1768792190290,0.05185591,92791.0,92780.0,0.00973916]
[1768792190488,0.05185591,92791.0,92757.0,0.10780508]
[1768792190489,0.00983051,92789.0,92772.0,0.09712]
[1768792190678,0.00983051,92789.0,92752.0,0.010786]
[1768792190679,0.00983051,92775.0,92758.0,0.09712]
[1768792190980,0.00923036,92769.0,92754.0,0.010786]
[1768792191182,0.00983051,92778.0,92765.0,0.010784]
[1768792191389,0.00983051,92778.0,92765.0,0.00382929]
[1768792191683,0.00983051,92778.0,92766.0,0.010784]
[1768792191893,0.00983051,92778.0,92766.0,0.01461329]
[1768792192185,0.09712,92784.0,92768.0,0.0150321]
[1768792192579,0.00924311,92785.0,92768.0,0.010784]
[1768792192886,0.00924311,92784.0,92765.0,0.00500477]
[1768792193088,0.09708,92783.0,92766.0,0.010784]
[1768792193294,0.09708,92782.0,92766.0,0.010784]
[1768792193981,0.00924311,92784.0,92766.0,0.010784]
[1768792194182,0.00924311,92784.0,92766.0,0.0166806]
[1768792194380,0.00924311,92784.0,92767.0,0.00629658]
[1768792194581,0.00924311,92784.0,92768.0,0.010784]
[1768792195282,0.00924311,92784.0,92767.0,0.00629658]
[1768792195483,0.00924311,92784.0,92764.0,0.010784]
[1768792195788,0.00924311,92784.0,92764.0,0.01738676]
[1768792196001,0.02072318,92784.0,92764.0,0.00660276]
[1768792196181,0.03150518,92784.0,92764.0,0.00660276]
[1768792196990,0.02072318,92784.0,92764.0,0.00660276]
[1768792197391,0.00924311,92782.0,92764.0,0.00660276]
[1768792197889,0.02072318,92782.0,92764.0,0.00660276]
[1768792198095,0.00924311,92777.0,92757.0,0.10806674]
[1768792198396,0.01148007,92776.0,92757.0,0.10806674]
[1768792198595,0.00924311,92775.0,92757.0,0.10806674]
[1768792199285,0.00924311,92775.0,92757.0,0.10493784]
[1768792199592,0.00924311,92775.0,92758.0,0.00790801]
[1768792199793,0.00924311,92763.0,92749.0,0.02901218]
[1768792199986,0.00924311,92762.0,92743.0,0.02901218]
[1768792200184,0.00924311,92762.0,92748.0,0.010786]
[1768792201192,0.00924311,92762.0,92746.0,0.010786]
[1768792201886,0.09708,92763.0,92745.0,0.00826238]
[1768792202092,0.00016174,92764.0,92758.0,0.010785]
[1768792202290,0.00924311,92786.0,92771.0,0.010784]
[1768792202489,0.00924311,92786.0,92766.0,0.00919707]
[1768792202693,0.09708,92785.0,92768.0,0.00919707]
[1768792202990,0.00924311,92786.0,92768.0,0.00919707]
[1768792203192,0.09708,92785.0,92769.0,0.010784]
[1768792203495,0.09708,92785.0,92768.0,0.00919707]
[1768792203696,0.09708,92785.0,92765.0,0.010784]
[1768792203899,0.10632311,92785.0,92765.0,0.010784]
[1768792204082,0.10632311,92785.0,92765.0,0.02056988]
[1768792204282,0.02072318,92785.0,92768.0,0.010784]
[1768792204592,0.09708,92784.0,92768.0,0.010784]
[1768792204788,0.00924311,92782.0,92766.0,0.00016174]
[1768792205383,0.09708,92784.0,92766.0,0.01180906]
[1768792206495,0.09708,92784.0,92773.0,0.010783]
[1768792206896,0.09708,92784.0,92766.0,0.01180906]
[1768792207094,0.11780318,92784.0,92766.0,0.02147178]
[1768792207489,0.11780318,92784.0,92769.0,0.010784]
[1768792207687,0.10632311,92784.0,92769.0,0.010784]
[1768792208896,0.10632311,92784.0,92770.0,0.14512799]
[1768792209703,0.09708,92783.0,92771.0,0.010784]
[1768792210100,0.00924311,92784.0,92771.0,0.010784]
[1768792210402,0.09708,92783.0,92770.0,0.14512799]
[1768792210608,0.02072318,92784.0,92770.0,0.14512799]
[1768792210904,0.02072318,92782.0,92770.0,0.14512799]
[1768792211106,0.02072318,92782.0,92766.0,0.00016174]
[1768792213006,0.02072318,92782.0,92770.0,0.14512799]
[1768792215707,0.02072318,92782.0,92766.0,0.00016174]
[1768792215906,0.02072318,92782.0,92770.0,0.14512799]
[1768792216703,0.09708,92783.0,92760.0,0.14512799]
[1768792216704,0.01148007,92775.0,92760.0,0.14512799]